bitfinex/quotes_BTCUSD_20240731
["timestamp","ask_amount","ask_price","bid_price","bid_amount"]
[1722388972708,1.96067315,66485.0,66484.0,0.64367415]
[1722388973108,1.97067315,66485.0,66484.0,0.64367415]
[1722388973322,2.11935077,66485.0,66484.0,0.64367415]
[1722388973524,1.81853177,66485.0,66484.0,0.62540252]
[1722388973950,1.81853177,66485.0,66484.0,0.55530252]
[1722388973951,2.11935077,66485.0,66484.0,0.55530252]
[1722388974152,2.1194479,66485.0,66484.0,0.55530252]
[1722388974347,1.8186289,66485.0,66484.0,0.55530252]
[1722388974555,1.96084482,66485.0,66484.0,0.55530252]
[1722388974970,1.87878892,66485.0,66484.0,0.55530252]
[1722388975108,1.96059132,66485.0,66484.0,0.55530252]
[1722388975508,1.97059132,66485.0,66484.0,0.55530252]
[1722388975727,1.8183754,66485.0,66484.0,0.30530252]
[1722388976371,2.1191944,66485.0,66484.0,0.30530252]
[1722388976570,1.8183754,66485.0,66484.0,0.30530252]
[1722388976914,1.8083754,66485.0,66484.0,0.30530252]
[1722388977336,0.31,66478.0,66477.0,0.000913]
[1722388977539,0.150441,66471.0,66470.0,0.00052717]
[1722388977740,0.150441,66471.0,66467.0,0.066]
[1722388977741,0.150448,66468.0,66467.0,0.066]
[1722388977896,1.62266316,66468.0,66467.0,0.066]
[1722388978325,1.62266316,66468.0,66453.0,0.009317]
[1722388978326,0.75232,66461.0,66453.0,0.009317]
[1722388978707,1.28211045,66461.0,66453.0,0.009317]
[1722388978882,1.28211045,66461.0,66460.0,0.075317]
[1722388979302,1.17678775,66461.0,66460.0,0.075317]
[1722388979532,0.57493175,66461.0,66460.0,0.075317]
[1722388979681,0.87585975,66461.0,66460.0,0.075317]
[1722388980382,0.87585975,66461.0,66460.0,0.158117]
[1722388980989,0.87539534,66461.0,66460.0,0.158117]
[1722388981395,0.87739534,66461.0,66460.0,0.158117]
[1722388981599,1.29706347,66461.0,66460.0,0.158117]
[1722388982002,1.29606347,66461.0,66460.0,0.158117]
[1722388982828,1.29506347,66461.0,66460.0,0.158117]
[1722388983785,1.29479189,66461.0,66460.0,0.158117]
[1722388984254,1.29779189,66461.0,66460.0,0.158117]
[1722388984675,1.18005169,66461.0,66460.0,0.158117]
[1722388986851,1.157248,66461.0,66460.0,0.158117]
[1722388987061,1.18018362,66461.0,66460.0,0.158117]
[1722388990323,1.157248,66461.0,66460.0,0.158117]
[1722388990522,1.18015629,66461.0,66460.0,0.158117]
[1722388990767,1.30794232,66461.0,66460.0,0.158117]
[1722388990961,1.33076975,66461.0,66460.0,0.158117]
[1722388991367,1.33076975,66461.0,66460.0,0.009317]
[1722388992445,1.33076975,66461.0,66458.0,0.009317]
[1722388992446,0.36585161,66461.0,66458.0,0.009317]
[1722388992647,0.36585161,66461.0,66453.0,0.084717]
[1722388992648,0.15048,66454.0,66453.0,0.009317]
[1722388992919,1.23451729,66454.0,66453.0,0.009317]
[1722388993120,1.53547729,66454.0,66453.0,0.009317]
[1722388993332,1.68617161,66454.0,66453.0,0.009317]
[1722388993535,1.60501432,66454.0,66453.0,0.009317]
[1722388993741,1.68559951,66454.0,66453.0,0.009317]
[1722388994161,1.23394519,66454.0,66453.0,0.0876562]
[1722388994373,1.15336,66454.0,66453.0,0.0876562]
[1722388994558,1.18436463,66454.0,66453.0,0.0876562]
[1722388994957,1.18636463,66454.0,66453.0,0.0876562]
[1722388995179,1.33705895,66454.0,66453.0,0.0876562]
[1722388995383,1.33505895,66454.0,66453.0,0.0876562]
[1722388996733,1.34440765,66454.0,66453.0,0.0876562]
[1722388996948,1.37990335,66454.0,66453.0,0.0876562]
[1722388997148,1.34228583,66454.0,66453.0,0.0876562]
[1722388997372,1.33428583,66454.0,66453.0,0.0876562]
[1722388997573,1.35328583,66454.0,66453.0,0.0876562]
[1722388997787,1.34328583,66454.0,66453.0,0.0876562]
[1722388998253,1.35428583,66454.0,66453.0,0.0876562]
[1722388998419,1.33428583,66454.0,66453.0,0.0876562]
[1722388998822,1.34528583,66454.0,66453.0,0.0876562]
[1722388999433,1.34528583,66454.0,66453.0,0.0069562]
[1722388999637,1.53812006,66454.0,66453.0,0.0069562]
[1722389000021,1.62475013,66454.0,66453.0,0.0069562]
[1722389000191,1.83803471,66454.0,66453.0,0.0069562]
[1722389000578,1.71189674,66454.0,66453.0,0.0069562]
[1722389000776,1.70089674,66454.0,66453.0,0.0069562]
[1722389001022,1.71489674,66454.0,66453.0,0.0069562]
[1722389001239,1.84102232,66454.0,66453.0,0.0069562]
[1722389001437,1.70589674,66454.0,66453.0,0.0069562]
[1722389001610,1.71789674,66454.0,66453.0,0.0069562]
[1722389002195,1.85224001,66454.0,66453.0,0.0069562]
[1722389002499,1.71712363,66454.0,66453.0,0.0069562]
[1722389003091,1.63975013,66454.0,66453.0,0.0069562]
[1722389003311,1.71774165,66454.0,66453.0,0.0069562]
[1722389003929,1.74135955,66454.0,66453.0,0.0069562]
[1722389004132,1.74135955,66454.0,66453.0,0.00483148]
[1722389005173,1.71774165,66454.0,66453.0,0.00483148]
[1722389006226,1.41678165,66454.0,66453.0,0.00483148]
[1722389006448,1.33879013,66454.0,66453.0,0.00483148]
[1722389006660,1.41662739,66454.0,66453.0,0.00483148]
[1722389006884,1.71758739,66454.0,66453.0,0.00483148]
[1722389008046,1.41662739,66454.0,66453.0,0.00483148]
[1722389008258,1.26593307,66454.0,66453.0,0.15013148]
[1722389010018,1.18809581,66454.0,66453.0,0.08773148]
[1722389010219,1.31342539,66454.0,66453.0,0.08773148]
[1722389010418,1.17409581,66454.0,66453.0,0.08773148]
[1722389010624,1.16209581,66454.0,66453.0,0.08773148]
[1722389010819,1.17309581,66454.0,66453.0,0.08773148]
[1722389011056,1.18509581,66454.0,66453.0,0.08773148]
[1722389011292,0.88413581,66454.0,66453.0,0.14803148]
[1722389011415,0.87213581,66454.0,66453.0,0.14803148]
[1722389011927,0.91057921,66454.0,66453.0,0.14803148]
[1722389014104,0.91057921,66454.0,66453.0,0.14611924]
[1722389014814,1.21153921,66454.0,66453.0,0.14611924]
[1722389016010,1.23515673,66454.0,66453.0,0.14611924]
[1722389024342,1.23515673,66454.0,66453.0,0.14439822]
[1722389025025,1.23515673,66454.0,66453.0,0.14339822]
[1722389027279,1.23598673,66454.0,66453.0,0.14339822]
[1722389028929,1.31358535,66454.0,66453.0,0.14339822]
[1722389030226,1.46595989,66454.0,66453.0,0.14339822]
[1722389030382,1.46539152,66454.0,66453.0,0.14339822]
[1722389030827,1.31300149,66454.0,66453.0,0.14339822]
[1722389033959,1.31347266,66454.0,66453.0,0.14339822]
[1722389034164,1.46589956,66454.0,66453.0,0.1418493]
[1722389034567,1.46600936,66454.0,66453.0,0.1418493]
[1722389034766,1.31358246,66454.0,66453.0,0.1418493]
[1722389036727,1.31358246,66454.0,66453.0,0.0815493]
[1722389037131,1.31358246,66454.0,66453.0,0.06760902]
[1722389037349,1.31329984,66454.0,66453.0,0.06760902]
[1722389037990,1.28385644,66454.0,66453.0,0.06760902]
[1722389040684,1.28425258,66454.0,66453.0,0.06760902]
[1722389041295,1.43680244,66454.0,66453.0,0.06760902]
[1722389043039,1.20654333,66454.0,66453.0,0.06760902]
[1722389043243,1.43674863,66454.0,66453.0,0.06760902]
[1722389043446,1.58042349,66454.0,66453.0,0.06760902]
[1722389043649,0.150482,66453.0,66452.0,0.009317]
[1722389043887,1.23102865,66453.0,66452.0,0.009317]
[1722389044850,1.24802865,66453.0,66452.0,0.009317]
[1722389045454,1.24793644,66453.0,66452.0,0.009317]
[1722389045857,1.39863076,66453.0,66452.0,0.009317]
[1722389046395,1.32106832,66453.0,66452.0,0.009317]
[1722389046582,1.39855782,66453.0,66452.0,0.009317]
[1722389048187,1.2478635,66453.0,66452.0,0.009317]
[1722389048529,1.0973815,66453.0,66452.0,0.009317]
[1722389048733,1.2478635,66453.0,66452.0,0.009317]
[1722389048930,1.2478635,66453.0,66452.0,0.144917]
[1722389049133,0.9468995,66453.0,66452.0,0.144917]
[1722389049633,0.89053192,66453.0,66452.0,0.144917]
[1722389049853,0.94758683,66453.0,66452.0,0.144917]
[1722389050305,0.89053192,66453.0,66452.0,0.144917]
[1722389050720,0.94760353,66453.0,66452.0,0.144917]
[1722389050891,1.24856753,66453.0,66452.0,0.144917]
[1722389051098,0.94760353,66453.0,66452.0,0.144917]
[1722389051880,1.0609401,66453.0,66452.0,0.144917]
[1722389052284,1.3619041,66453.0,66452.0,0.144917]
[1722389052897,1.00346131,66453.0,66452.0,0.144917]
[1722389053103,1.06012771,66453.0,66452.0,0.144917]
[1722389053310,1.28371057,66453.0,66452.0,0.144917]
[1722389053572,1.05999946,66453.0,66452.0,0.144917]
[1722389053749,0.94666289,66453.0,66452.0,0.144917]
[1722389055846,1.24762689,66453.0,66452.0,0.144917]
[1722389056247,1.24751075,66453.0,66452.0,0.144917]
[1722389057425,1.24751075,66453.0,66452.0,0.084417]
[1722389058071,1.24751075,66453.0,66452.0,0.009317]
[1722389058275,1.39820507,66453.0,66452.0,0.009317]
[1722389060477,1.39020507,66453.0,66452.0,0.009317]
[1722389060906,1.39920507,66453.0,66452.0,0.009317]
[1722389061041,1.39020507,66453.0,66452.0,0.009317]
[1722389061445,1.40020507,66453.0,66452.0,0.009317]
[1722389061653,1.24951075,66453.0,66452.0,0.009317]
[1722389062062,0.94854675,66453.0,66452.0,0.009317]
[1722389062463,1.24951075,66453.0,66452.0,0.009317]
[1722389062700,1.25040767,66453.0,66452.0,0.009317]
[1722389063269,1.172374,66453.0,66452.0,0.009317]
[1722389063467,1.24070796,66453.0,66452.0,0.009317]
[1722389064206,1.23070796,66453.0,66452.0,0.009317]
[1722389064412,1.23770796,66453.0,66452.0,0.009317]
[1722389064622,1.24570796,66453.0,66452.0,0.009317]
[1722389064824,1.29952472,66453.0,66452.0,0.009317]
[1722389066026,1.29937086,66453.0,66452.0,0.009317]
[1722389069415,1.2988642,66453.0,66452.0,0.009317]
[1722389070043,1.24504744,66453.0,66452.0,0.009317]
[1722389072688,1.2459006,66453.0,66452.0,0.009317]
[1722389075831,1.24540861,66453.0,66452.0,0.009317]
[1722389079135,1.24538525,66453.0,66452.0,0.009317]
[1722389080962,1.168374,66453.0,66452.0,0.009317]
[1722389081278,1.39629707,66453.0,66452.0,0.009317]
[1722389082281,1.24560275,66453.0,66452.0,0.148117]
[1722389082487,1.168374,66453.0,66452.0,0.148117]
[1722389082652,1.24578001,66453.0,66452.0,0.148117]
[1722389085918,1.24555989,66453.0,66452.0,0.148117]
[1722389086285,0.09218589,66453.0,66452.0,0.234417]
[1722389086716,0.24266789,66453.0,66452.0,0.234417]
[1722389086919,0.09218589,66453.0,66452.0,0.234417]
[1722389087296,0.08518589,66453.0,66452.0,0.234417]
[1722389087491,0.09218589,66453.0,66452.0,0.234417]
[1722389087937,0.19218589,66453.0,66452.0,0.234417]
[1722389088138,0.18418589,66453.0,66452.0,0.234417]
[1722389088548,0.18418589,66453.0,66452.0,0.236417]
[1722389089208,0.18547011,66453.0,66452.0,0.234417]
[1722389089573,0.18647011,66453.0,66452.0,0.236417]
[1722389089743,0.18647011,66453.0,66452.0,0.384901]
[1722389089744,0.07847011,66453.0,66452.0,0.384901]
[1722389089946,0.07847011,66453.0,66452.0,0.68587]
[1722389090162,0.07847011,66453.0,66452.0,0.386901]
[1722389090615,0.07847011,66453.0,66452.0,0.384901]
[1722389090850,0.07847011,66453.0,66452.0,0.236417]
[1722389091077,0.07947011,66453.0,66452.0,0.236417]
[1722389091309,0.08047011,66453.0,66452.0,0.388901]
[1722389091783,0.08047011,66453.0,66452.0,0.68987]
[1722389092216,0.002,66453.0,66452.0,0.68987]
[1722389092854,0.002,66453.0,66452.0,0.990839]
[1722389093080,0.08052207,66453.0,66452.0,0.990839]
[1722389093726,0.07952207,66453.0,66452.0,0.988839]
[1722389094170,0.08052207,66453.0,66452.0,0.989839]
[1722389094399,0.08056407,66453.0,66452.0,0.989839]
[1722389094841,0.07956407,66453.0,66452.0,0.987839]
[1722389095248,0.08056407,66453.0,66452.0,0.996839]
[1722389095444,0.002,66453.0,66452.0,0.996839]
[1722389095664,0.08103117,66453.0,66452.0,0.996839]
[1722389096469,0.08103117,66453.0,66452.0,1.297808]
[1722389096846,0.02356088,66453.0,66452.0,1.297808]
[1722389097126,0.02356088,66453.0,66452.0,0.996839]
[1722389099001,0.02356088,66453.0,66452.0,1.297808]
[1722389099002,0.02363077,66453.0,66452.0,1.297808]
[1722389100200,0.02363077,66453.0,66452.0,1.29774804]
[1722389101267,0.02413527,66453.0,66452.0,1.29774804]
[1722389101468,0.15970568,66453.0,66452.0,1.29774804]
[1722389101673,0.02413527,66453.0,66452.0,1.29674804]
[1722389101856,0.02427732,66453.0,66452.0,1.29674804]
[1722389102244,0.02427732,66453.0,66452.0,1.29574804]
[1722389102245,0.02327732,66453.0,66452.0,1.29574804]
[1722389102449,0.02227732,66453.0,66452.0,0.98577904]
[1722389102596,0.02327732,66453.0,66452.0,0.99477904]
[1722389102778,0.02427732,66453.0,66452.0,1.00377904]
[1722389102976,0.02327732,66453.0,66452.0,0.99477904]
[1722389103201,0.02227732,66453.0,66452.0,0.98577904]
[1722389103405,0.15884718,66453.0,66452.0,0.69381004]
[1722389103608,0.15871797,66453.0,66452.0,0.69381004]
[1722389103942,0.15771797,66453.0,66452.0,0.68481004]
[1722389104142,0.15771797,66453.0,66452.0,0.38384104]
[1722389104396,0.00083,66454.0,66453.0,0.150482]
[1722389104596,0.00083,66454.0,66453.0,0.227682]
[1722389104805,0.0229002,66454.0,66453.0,0.227682]
[1722389105878,0.0229002,66454.0,66453.0,0.0772]
[1722389106105,0.0229002,66454.0,66453.0,0.0852]
[1722389106510,0.4743402,66454.0,66453.0,0.0852]
[1722389106713,0.7753002,66454.0,66453.0,0.0852]
[1722389106920,0.7753002,66454.0,66453.0,0.0932]
[1722389106921,0.4743402,66454.0,66453.0,0.0932]
[1722389107126,0.56798848,66454.0,66453.0,0.0932]
[1722389107530,0.54591828,66454.0,66453.0,0.0932]
[1722389107688,0.56706373,66454.0,66453.0,0.016]
[1722389108522,0.17245545,66454.0,66453.0,0.016]
[1722389108724,0.02197545,66454.0,66453.0,0.016]
[1722389109174,0.02197545,66454.0,66453.0,0.699646]
[1722389109595,0.02197545,66454.0,66453.0,0.398682]
[1722389110304,0.02197545,66454.0,66453.0,0.390682]
[1722389110926,0.02208725,66454.0,66453.0,0.390682]
[1722389111322,0.0220224,66454.0,66453.0,0.390682]
[1722389111536,0.0220224,66454.0,66453.0,0.382682]
[1722389111970,0.0220224,66454.0,66453.0,0.392682]
[1722389111971,0.0230224,66454.0,66453.0,0.392682]
[1722389112161,0.00083,66454.0,66453.0,0.683646]
[1722389112482,0.00283,66454.0,66453.0,0.703646]
[1722389112687,0.02339935,66454.0,66453.0,1.00461]
[1722389112893,0.00183,66454.0,66453.0,1.295574]
[1722389113114,0.00283,66454.0,66453.0,1.305574]
[1722389115171,0.00183,66454.0,66453.0,1.295574]
[1722389115381,0.00183,66454.0,66453.0,1.285574]
[1722389115382,0.00083,66454.0,66453.0,1.285574]
[1722389115598,0.00083,66454.0,66453.0,1.299574]
[1722389115599,0.00183,66454.0,66453.0,1.299574]
[1722389116236,0.00183,66454.0,66453.0,1.00761]
[1722389116880,0.00183,66454.0,66453.0,0.99861]
[1722389117079,0.00183,66454.0,66453.0,1.01261]
[1722389118380,0.00183,66454.0,66453.0,1.02461]
[1722389118588,0.00183,66454.0,66453.0,1.323574]
[1722389118789,0.00183,66454.0,66453.0,1.325574]
[1722389118999,0.00183,66454.0,66453.0,1.346574]
[1722389119199,0.00183,66454.0,66453.0,1.334574]
[1722389119444,0.00083,66454.0,66453.0,1.320574]
[1722389119671,0.00083,66454.0,66453.0,1.334574]
[1722389119885,0.00083,66454.0,66453.0,1.354574]
[1722389120296,0.00083,66454.0,66453.0,1.669538]
[1722389120521,0.00083,66454.0,66453.0,1.368574]
[1722389120947,0.00083,66454.0,66453.0,1.354574]
[1722389121357,0.00083,66454.0,66453.0,1.368574]
[1722389121564,0.00083,66454.0,66453.0,1.354574]
[1722389122123,0.00083,66454.0,66453.0,1.368574]
[1722389122918,0.00083,66454.0,66453.0,1.346574]
[1722389123137,0.00083,66454.0,66453.0,1.37549482]
[1722389123367,0.00083,66454.0,66453.0,1.35549482]
[1722389123936,0.00083,66454.0,66453.0,1.37549482]
[1722389125605,0.00083,66454.0,66453.0,1.35549482]
[1722389126357,0.00083,66454.0,66453.0,1.37749482]
[1722389130279,0.00083,66470.0,66469.0,0.97663]
[1722389130694,0.00083,66470.0,66469.0,0.89033]
[1722389130898,0.00083,66470.0,66469.0,0.97663]
[1722389131511,0.00083,66470.0,66469.0,0.98163]
[1722389131722,0.00083,66470.0,66469.0,0.97663]
[1722389132140,0.00083,66470.0,66469.0,0.99063]
[1722389132340,0.00083,66470.0,66469.0,1.00463]
[1722389135891,0.00083,66470.0,66469.0,0.703738]
[1722389136338,0.00083,66470.0,66469.0,0.1661]
[1722389136593,0.00083,66470.0,66469.0,0.028]
[1722389136594,0.817847,66470.0,66469.0,0.028]
[1722389137028,0.88547993,66470.0,66469.0,0.028]
[1722389137238,0.9043702,66470.0,66469.0,0.028]
[1722389137475,0.9043702,66470.0,66469.0,0.014]
[1722389137683,0.83673727,66470.0,66469.0,0.024]
[1722389137897,0.83764541,66470.0,66469.0,0.024]
[1722389138103,0.83673727,66470.0,66469.0,0.014]
[1722389138312,0.150455,66465.0,66458.0,0.31437]
[1722389138522,0.0015542,66464.0,66458.0,0.31437]
[1722389139787,0.1520122,66464.0,66458.0,0.1709]
[1722389140003,0.1520122,66464.0,66458.0,0.32137]
[1722389140004,0.0015542,66464.0,66458.0,0.32137]
[1722389140212,0.0015542,66464.0,66458.0,0.31437]
[1722389140419,0.0015542,66464.0,66461.0,0.0863]
[1722389140628,0.0015542,66465.0,66463.0,0.07534716]
[1722389140838,0.0015542,66469.0,66466.0,0.150451]
[1722389141049,0.00083,66470.0,66469.0,0.0863]
[1722389141252,0.00083,66470.0,66466.0,0.150451]
[1722389141253,0.00083,66470.0,66466.0,0.0863]
[1722389141476,0.150449,66468.0,66466.0,0.0863]
[1722389141687,0.150456,66465.0,66460.0,0.2322]
[1722389141893,0.150453,66466.0,66460.0,0.2322]
[1722389142020,0.0015542,66465.0,66460.0,0.382666]
[1722389142295,0.1520092,66465.0,66460.0,0.166]
[1722389142840,0.1520062,66466.0,66460.0,0.0863]
[1722389143250,0.0015542,66466.0,66460.0,0.236766]
[1722389143395,0.0015542,66466.0,66460.0,0.243766]
[1722389144617,0.0015542,66466.0,66460.0,0.249766]
[1722389144815,0.210751,66467.0,66461.0,0.150463]
[1722389145043,0.210751,66467.0,66460.0,0.243766]
[1722389145255,0.361205,66467.0,66460.0,0.0983]
[1722389145460,0.0603,66467.0,66460.0,0.005]
[1722389145655,0.594792,66461.0,66460.0,0.011]
[1722389145999,1.196648,66461.0,66460.0,0.011]
[1722389146284,0.81631,66453.0,66451.0,0.009317]
[1722389148798,0.81631,66453.0,66452.0,0.02125704]
[1722389148998,0.81631,66453.0,66452.0,0.03525704]
[1722389149602,0.515346,66453.0,66452.0,0.03525704]
[1722389149980,0.379435,66460.0,66452.0,0.03525704]
[1722389149981,0.30180929,66456.0,66452.0,0.03525704]
[1722389150172,0.30180929,66456.0,66453.0,0.22054716]
[1722389150173,0.00085829,66456.0,66453.0,0.22054716]
[1722389150404,0.00085829,66456.0,66453.0,0.14820929]
[1722389150514,0.36431129,66456.0,66452.0,0.03525704]
[1722389150718,0.451446,66453.0,66452.0,0.03525704]
[1722389151121,0.451446,66453.0,66452.0,0.02225704]
[1722389151122,0.75241,66453.0,66452.0,0.02225704]
[1722389151343,1.053374,66453.0,66452.0,0.02225704]
[1722389152004,1.053374,66453.0,66452.0,0.02125704]
[1722389152911,1.053374,66453.0,66452.0,0.03125704]
[1722389153313,1.17287682,66453.0,66452.0,0.02125704]
[1722389153746,1.17287682,66453.0,66452.0,0.03525704]
[1722389154511,1.18178367,66453.0,66452.0,0.03525704]
[1722389155942,1.06228085,66453.0,66452.0,0.03525704]
[1722389160426,0.76131685,66453.0,66452.0,0.03525704]
[1722389162460,0.78032435,66453.0,66452.0,0.03525704]
[1722389162659,0.76131685,66453.0,66452.0,0.03525704]
[1722389163384,0.78029033,66453.0,66452.0,0.03525704]
[1722389164562,0.78027198,66453.0,66452.0,0.03525704]
[1722389165993,1.03169438,66453.0,66452.0,0.03525704]
[1722389166198,1.43265838,66453.0,66452.0,0.03525704]
[1722389167454,1.43265838,66453.0,66452.0,0.02225704]
[1722389167666,1.43265838,66453.0,66452.0,0.02825704]
[1722389167869,1.41370325,66453.0,66452.0,0.02825704]
[1722389168060,1.43266712,66453.0,66452.0,0.02825704]
[1722389168272,1.41370325,66453.0,66452.0,0.01425704]
[1722389168448,1.32454472,66453.0,66452.0,0.01425704]
[1722389168594,1.32454472,66453.0,66452.0,0.02125704]
[1722389170054,1.32451406,66453.0,66452.0,0.02125704]
[1722389170254,1.37948092,66453.0,66452.0,0.02125704]
[1722389170470,1.23618092,66453.0,66452.0,0.02125704]
[1722389171222,1.23616834,66453.0,66452.0,0.02125704]
[1722389172049,0.93520434,66453.0,66452.0,0.02125704]
[1722389174564,0.86131685,66453.0,66452.0,0.02125704]
[1722389174742,0.9353513,66453.0,66452.0,0.02125704]
[1722389177316,0.6343873,66453.0,66452.0,0.02125704]
[1722389177678,0.9353513,66453.0,66452.0,0.02125704]
[1722389177881,0.63450042,66453.0,66452.0,0.02125704]
[1722389178283,0.93546442,66453.0,66452.0,0.02125704]
[1722389178483,0.63450042,66453.0,66452.0,0.02125704]
[1722389179144,0.93546442,66453.0,66452.0,0.02125704]
[1722389180379,0.93530829,66453.0,66452.0,0.02125704]
[1722389180591,0.9801078,66453.0,66452.0,0.02125704]
[1722389181172,0.98006715,66453.0,66452.0,0.02125704]
[1722389182156,1.11518018,66453.0,66452.0,0.02125704]
[1722389182561,1.25768018,66453.0,66452.0,0.02125704]
[1722389182763,1.12256715,66453.0,66452.0,0.02125704]
[1722389182972,1.37873164,66453.0,66452.0,0.02125704]
[1722389184594,1.37781424,66453.0,66452.0,0.02125704]
[1722389184795,1.53022809,66453.0,66452.0,0.02125704]
[1722389185345,1.37781424,66453.0,66452.0,0.02125704]
[1722389186833,1.37781424,66453.0,66452.0,0.01525704]
[1722389187057,1.37781424,66453.0,66452.0,0.01625704]
[1722389187281,1.37781424,66453.0,66452.0,0.01525704]
[1722389187439,1.37781424,66453.0,66452.0,0.00825704]
[1722389187668,1.37781424,66453.0,66452.0,0.01025704]
[1722389187888,1.30478085,66453.0,66452.0,0.01025704]
[1722389188046,1.52793686,66453.0,66452.0,0.01025704]
[1722389188403,1.52793686,66453.0,66452.0,0.00825704]
[1722389188532,1.61423686,66453.0,66452.0,0.00925704]
[1722389191098,1.54177517,66453.0,66452.0,0.00925704]
[1722389191306,1.91578697,66453.0,66452.0,0.00925704]
[1722389191453,1.61482297,66453.0,66452.0,0.00925704]
[1722389191861,1.91578697,66453.0,66452.0,0.00925704]
[1722389192536,1.61482297,66453.0,66452.0,0.00925704]
[1722389193008,1.91578697,66453.0,66452.0,0.00925704]
[1722389193441,1.61482297,66453.0,66452.0,0.00925704]
[1722389193670,1.91578697,66453.0,66452.0,0.00925704]
[1722389193893,1.61482297,66453.0,66452.0,0.00925704]
[1722389194589,1.61460232,66453.0,66452.0,0.00925704]
[1722389196311,1.61460232,66453.0,66452.0,0.00848942]
[1722389197941,1.61455918,66453.0,66452.0,0.00848942]
[1722389198459,1.61455773,66453.0,66452.0,0.00848942]
[1722389200082,1.61428429,66453.0,66452.0,0.00848942]
[1722389200657,1.53578429,66453.0,66452.0,0.00848942]
[1722389200865,1.38548429,66453.0,66452.0,0.00848942]
[1722389201072,1.23478997,66453.0,66452.0,0.06898942]
[1722389201309,1.23487702,66453.0,66452.0,0.14508942]
[1722389201526,1.38738189,66453.0,66452.0,0.14508942]
[1722389201741,1.23487702,66453.0,66452.0,0.14508942]
[1722389201977,1.3873816,66453.0,66452.0,0.14508942]
[1722389202153,0.48449427,66453.0,66452.0,0.14508942]
[1722389202367,0.57861727,66453.0,66452.0,0.14508942]
[1722389202872,0.12717127,66453.0,66452.0,0.14508942]
[1722389203082,0.11981862,66453.0,66452.0,0.14508942]
[1722389203519,0.17113472,66453.0,66452.0,0.14508942]
[1722389203731,0.26958052,66453.0,66452.0,0.14508942]
[1722389204170,0.27091642,66453.0,66452.0,0.14508942]
[1722389204405,0.26958052,66453.0,66452.0,0.14508942]
[1722389204828,0.11909852,66453.0,66452.0,0.14508942]
[1722389205049,0.01909852,66453.0,66452.0,0.75003698]
[1722389205276,0.01909852,66453.0,66452.0,0.59654242]
[1722389206170,0.01909852,66453.0,66452.0,0.59554242]
[1722389206371,0.0008341,66453.0,66452.0,0.60054242]
[1722389206571,0.01916334,66453.0,66452.0,0.60054242]
[1722389207168,0.01916334,66453.0,66452.0,0.60454242]
[1722389207301,0.01916334,66453.0,66452.0,0.59954242]
[1722389207499,0.01916334,66453.0,66452.0,0.89651142]
[1722389207705,0.01916334,66453.0,66452.0,1.20448042]
[1722389207706,0.0008341,66453.0,66452.0,1.20448042]
[1722389207907,0.0008341,66453.0,66452.0,1.22048042]
[1722389208130,0.0008341,66453.0,66452.0,1.21048042]
[1722389208295,0.0008341,66453.0,66452.0,1.20548042]
[1722389208882,0.0008341,66453.0,66452.0,1.19948042]
[1722389209272,0.0008341,66453.0,66452.0,1.19248042]
[1722389209627,0.0008341,66453.0,66452.0,1.20648042]
[1722389210076,0.0008341,66453.0,66452.0,1.22048042]
[1722389211321,0.0008341,66453.0,66452.0,0.91951142]
[1722389217265,0.0016641,66453.0,66452.0,0.91951142]
[1722389218539,0.0016641,66453.0,66452.0,0.60454242]
[1722389218915,0.0016641,66453.0,66452.0,0.61854242]
[1722389219510,0.0016641,66453.0,66452.0,0.60454242]
[1722389220716,0.0016641,66453.0,66452.0,0.61854242]
[1722389223849,0.0016641,66453.0,66452.0,0.91951142]
[1722389224538,0.00083,66454.0,66452.0,0.91951142]
[1722389224751,0.41354001,66469.0,66460.0,0.0863]
[1722389224963,0.0193007,66465.0,66460.0,0.0863]
[1722389225178,0.150458,66464.0,66460.0,0.0863]
[1722389225406,0.300897,66468.0,66460.0,0.0863]
[1722389225668,0.300897,66468.0,66454.0,0.07534716]
[1722389225669,0.01964881,66467.0,66466.0,0.294152]
[1722389225877,0.0099613,66470.0,66466.0,0.294152]
[1722389225878,0.00083,66470.0,66467.0,0.236749]
[1722389226104,0.00083,66470.0,66467.0,0.0863]
[1722389226537,0.00083,66470.0,66466.0,0.23]
[1722389226710,0.00083,66470.0,66464.0,0.0815]
[1722389226911,0.150454,66466.0,66464.0,0.0815]
[1722389227113,0.150455,66465.0,66464.0,0.0815]
[1722389227264,0.150453,66466.0,66464.0,0.0815]
[1722389227672,0.00172378,66470.0,66460.0,0.2269]
[1722389227877,0.150457,66464.0,66460.0,0.2269]
[1722389228477,0.00100808,66463.0,66460.0,0.2269]
[1722389229354,0.00100808,66463.0,66460.0,0.1406]
[1722389229556,0.15146808,66463.0,66460.0,0.1406]
[1722389229762,0.15046,66463.0,66460.0,0.1456]
[1722389229966,0.150464,66461.0,66460.0,0.1516]
[1722389230171,0.150464,66461.0,66460.0,0.0903]
[1722389230394,0.150464,66461.0,66460.0,0.0853]
[1722389230608,0.150461,66462.0,66460.0,0.0853]
[1722389230813,0.150461,66462.0,66460.0,0.0883]
[1722389231017,0.0015542,66461.0,66460.0,0.0883]
[1722389231221,0.1520182,66461.0,66460.0,0.0883]
[1722389231464,0.0015542,66461.0,66460.0,0.0883]
[1722389231671,0.1520162,66462.0,66460.0,0.0883]
[1722389231849,0.1520162,66462.0,66460.0,0.0823]
[1722389232050,0.1520162,66462.0,66460.0,0.0833]
[1722389232273,0.1520162,66462.0,66460.0,0.0883]
[1722389232470,0.150464,66461.0,66460.0,0.0883]
[1722389232813,0.0015542,66462.0,66460.0,0.0883]
[1722389232814,0.1512511,66462.0,66460.0,0.0793]
[1722389233020,0.150462,66462.0,66460.0,0.0883]
[1722389233202,0.00125838,66461.0,66460.0,0.0883]
[1722389233407,0.01841,66461.0,66460.0,0.0883]
[1722389234172,0.01841,66462.0,66460.0,0.0883]
[1722389234379,0.01841,66461.0,66460.0,0.0833]
[1722389234584,0.01841,66461.0,66460.0,0.0893]
[1722389234972,0.01841,66461.0,66460.0,0.0853]
[1722389235334,0.01841,66461.0,66460.0,0.0843]
[1722389235473,0.01841,66461.0,66460.0,0.0893]
[1722389236474,0.0184919,66461.0,66460.0,0.0893]
[1722389236676,0.0184919,66461.0,66460.0,0.0843]
[1722389237101,0.1689559,66461.0,66460.0,0.0843]
[1722389237714,0.0184919,66461.0,66460.0,0.0843]
[1722389238337,0.1689559,66461.0,66460.0,0.0843]
[1722389238648,0.1689559,66461.0,66460.0,0.0903]
[1722389239623,0.150462,66462.0,66460.0,0.0903]